Cogmind - Beta 15 @@@ ROGUE MODE // 2025.05.06 @ 22:05:17 Player: Rune Result: Destroyed by G-34 Mercenary with Small Laser Performance ------------- Evolutions (1) 500 Regions Visited (2) 400 Robots Destroyed (21) 105 Value Destroyed (575) 575 Prototype IDs (1) 20 Alien Tech Used (0) 0 Bonus (0) 0 TOTAL SCORE: 1600 Bonus ------- None Cogmind --------- Core Integrity 0/400 Matter 265/300 Energy 43/100 System Corruption 0% Temperature Cool (6) Movement Core (700) Ox13 Location -9/Materials Parts ------- > --- POWER (1) -------- (None) > --- PROPULSION (2) --- (None) > --- UTILITY (3) ------ High-capacity Storage Unit Signal Interpreter > --- WEAPON (3) ------- Small Laser Small Laser > --- INVENTORY (20) --- (None) Peak State ------------ > --- POWER ------------ Light Ion Engine > --- PROPULSION ------- Aluminum Leg Aluminum Leg > --- UTILITY ---------- High-capacity Storage Unit Terrain Scanner Weapon Shielding > --- WEAPON ----------- Advanced Beam Cannon Assault Rifle Light Assault Rifle > --- INVENTORY -------- Small Laser Small Laser Welding Torch [Rating: 11] Favorites ----------- Power Light Ion Engine Engine Light Ion Engine Propulsion Aluminum Leg Leg Aluminum Leg Utility Terrain Scanner Device Terrain Scanner Storage High-capacity Storage Unit Processor Signal Interpreter Protection Weapon Shielding Weapon Assault Rifle Energy Gun EM Pulse Gun Energy Cannon Advanced Beam Cannon Ballistic Gun Assault Rifle Ballistic Cannon Light Cannon Special Weapon Welding Torch Build | -11 -10 -9 ------- Run | Yrd Mat Mat Slots Evolved 2 | . . 2 Power . | . . . Propulsion . | . . . Utility 1 | . . 1 Weapon 1 | . . 1 Parts Attached 20 | 6 4 10 Power 3 | 1 . 2 Engine 3 | 1 . 2 Core . | . . . Reactor . | . . . Propulsion 2 | 2 . . Treads . | . . . Leg 2 | 2 . . Wheel . | . . . Hover . | . . . Flight . | . . . Utility 5 | 1 2 2 Device 1 | . 1 . Storage 2 | 1 1 . Processor 1 | . . 1 Hackware . | . . . Protection 1 | . . 1 Artifact . | . . . Weapon 10 | 2 2 6 Energy Gun 4 | 1 2 1 Energy Cannon 1 | . . 1 Ballistic Gun 3 | 1 . 2 Ballistic Cannon 1 | . . 1 Launcher . | . . . Special Weapon 1 | . . 1 Impact Weapon . | . . . Slashing Weapon . | . . . Piercing Weapon . | . . . Special Melee Weapon . | . . . Unidentified Prototypes 1 | . . 1 Parts Lost 13 | . . 13 Power 2 | . . 2 Propulsion 2 | . . 2 Utility 2 | . . 2 Weapon 7 | . . 7 Highest Loss Streak 9 | . . 9 To Critical Strikes . | . . . Average Backups 4 | 3 4 3 Power . | . . . Propulsion . | . . . Utility . | . . . Weapon 2 | 2 3 2 Tool/Special . | . . . Unused Backups 5 | 2 3 . Power 1 | . 1 . Propulsion 2 | 2 . . Utility 2 | . 2 . Weapon . | . . . Tool/Special . | . . . Average Slot Usage (%) 93 | . 96 91 Engine 11 | . 14 10 Leg 23 | . 28 21 Device 10 | . 11 10 Storage 12 | . 14 11 Protection 3 | . . 5 Energy Gun 7 | . 14 4 Energy Cannon 3 | . . 5 Ballistic Gun 16 | . 14 17 Ballistic Cannon 2 | . . 3 Peak Build Rating 11 | 6 7 11 Average Rating 8 | 2 6 9 On Entrance 4 | . 6 7 Naked Turns . | . . . Heaviest Build 52 | 11 48 52 Greatest Support 20 | 20 20 20 Greatest Overweight (x) 16 | 2 2 16 Average Overweight (x) 1 | . . 2 Largest Inventory Capacity 20 | 8 20 20 Average Capacity 17 | 7 14 20 Most Carried 8 | 8 7 7 Average Carried 4 | 3 4 3 Final Capacity 20 | 8 20 20 Final Carried 5 | 2 5 . Class Distribution -------------------- 53% | Skirmisher 46% | Mutant Dominant Class ---------------- Mutant | -10/Materials Skirmisher | -9/Materials Resources | -11 -10 -9 ----------- Run | Yrd Mat Mat Matter Collected 586 | 188 154 244 Remotely . | . . . Salvage Created 637 | . 137 500 Parts 44 | . 10 34 Haulers Intercepted . | . . . Recyclers Shooed . | . . . Parts Field Recycled . | . . . Retrieved Matter . | . . . Parts Self-Destructed . | . . . Prevented . | . . . Kills | -11 -10 -9 ------- Run | Yrd Mat Mat Combat Hostiles Destroyed 19 | . 4 15 Guns 10 | . 4 6 Cannons 9 | . . 9 Classes Destroyed 4 | . 3 1 Watcher 2 | . 1 1 Swarmer 7 | . 3 4 Grunt 10 | . 1 9 Sentry 2 | . . 2 Best Kill Streak 4 | . 4 4 Combat Bots Only 3 | . 3 3 Max Kills in Single Turn 1 | . 1 1 Gunslinging . | . . . Exploded . | . . . Melee . | . . . Uniques/NPCs Destroyed . | . . . Combat | -11 -10 -9 -------- Run | Yrd Mat Mat Hostile Shots Fired 167 | . 16 151 Missed 36 | . 3 33 Hits 131 | . 13 118 Melee 8 | . . 8 Projectile 123 | . 13 110 Critical Strikes 2 | . . 2 Actively Blocked 1 | . . 1 Damage Taken 1598 | . 130 1468 Core 404 | . . 404 Absorbed by Shields . | . . . Redirected to Shielding 51 | . . 51 Core Remaining (%) 100 | 100 100 . Volleys Fired 59 | . 14 45 Largest 3 | . 2 3 Hottest 108 | . 60 108 Shots Fired 147 | . 28 119 Gun 108 | . 28 80 Cannon 38 | . . 38 Launcher . | . . . Special 1 | . . 1 Kinetic 97 | . 14 83 Thermal 27 | . . 27 Explosive . | . . . Electromagnetic 23 | . 14 9 Robot Hit Streak 7 | . 7 7 Robot Miss Streak 7 | . 5 7 Penetration Max . | . . . Secondary Targets . | . . . Shots Hit Robots 75 | . 14 61 Core Hits 33 | . 6 27 Critical Kills . | . . . Critical Parts Destroyed . | . . . Critical Strikes 1 | . . 1 Burn 1 | . . 1 Melee Attacks . | . . . Impact . | . . . Slashing . | . . . Piercing . | . . . Sneak Attacks . | . . . Combat Hostiles . | . . . Follow-up Attacks . | . . . Damage Inflicted 1086 | . 170 916 Guns 602 | . 170 432 Cannons 484 | . . 484 Explosions . | . . . Melee . | . . . Ramming . | . . . Kinetic 674 | . 91 583 Thermal 269 | . . 269 Explosive . | . . . Electromagnetic 143 | . 79 64 Impact . | . . . Slashing . | . . . Piercing . | . . . Highest Corruption . | . . . Average Corruption . | . . . Corruption Purged . | . . . Corruption Blocked . | . . . Overload Shots . | . . . Overflow Damage . | . . . Projectiles . | . . . Explosions . | . . . Melee . | . . . Knockbacks 1 | . . 1 Impact . | . . . Kinetic 1 | . . 1 Secondary . | . . . Self-Inflicted Damage . | . . . Shots . | . . . Rammed . | . . . Targets Rammed 1 | . . 1 Kicked 1 | . . 1 Crushed . | . . . Highest Temperature 418 | . 18 418 Average Temperature 87 | . 10 94 Received Heat Transfer 471 | . 54 417 Effects 2 | . . 2 Shutdowns 1 | . . 1 Energy Bleed 1 | . . 1 Siege Activations . | . . . Martial Activations . | . . . Shielding Activations . | . . . Robots Disrupted . | . . . Combat Hostiles . | . . . Robots Corrupted . | . . . Combat Hostiles . | . . . Parts Fried . | . . . Impact Corruptions . | . . . Robots Melted . | . . . Combat Hostiles . | . . . Parts Melted 1 | . . 1 Heat Transferred 592 | . . 592 Parts Sabotaged . | . . . Parts Stolen . | . . . Parts Stripped . | . . . Power Chain Reactions . | . . . Alert | -11 -10 -9 ------- Run | Yrd Mat Mat Maximum Alert Level . | . . . Low Security (%) 100 | 100 100 100 Level 1 . | . . . Level 2 . | . . . Level 3 . | . . . Level 4 . | . . . Level 5 . | . . . High Security . | . . . Max Security . | . . . Peak Influence 131 | . 69 131 Initial 12 | . . 12 Average 35 | . 12 50 Influence Increases 584 | . 111 473 Destroy 0b10 Robot/C 380 | . 80 300 Destroy 0b10 Robot/NC 10 | . 5 5 Destroy Leader 84 | . 22 62 Successful Hack 2 | . 2 . Disable Machine 45 | . . 45 Destroy Structure 3 | . 2 1 Lose Combat Pursuer 60 | . . 60 Influence Decreases 570 | . 81 489 Entered New Map 18 | . . 18 Time Decay 422 | . 81 341 Lost Part 130 | . . 130 Squads Dispatched 4 | . 2 2 Investigation 1 | . 1 . Extermination . | . . . Reinforcement 3 | . 1 2 Assault . | . . . Garrison . | . . . Intercept . | . . . Searches Triggered . | . . . Construction Impeded . | . . . Haulers Reinforced . | . . . Active Scanning Responses . | . . . Cargo Convoy Interrupts . | . . . Stealth | -11 -10 -9 --------- Run | Yrd Mat Mat Distress Signals 7 | . 1 6 Communications Jammed . | . . . Distress Signals . | . . . Times Spotted 44 | . 7 37 Peak Tracking Total 7 | . 3 7 Tactical Retreats 3 | . . 3 Traps | -11 -10 -9 ------- Run | Yrd Mat Mat Traps Triggered 2 | . 2 . Indirectly . | . . . Trap Hack Attempts . | . . . Triggered . | . . . Disarmed . | . . . Reprogrammed . | . . . Reused . | . . . Traps Extracted . | . . . Installed . | . . . Triggered . | . . . Machines | -11 -10 -9 ---------- Run | Yrd Mat Mat Machines Disabled 3 | . . 3 Max in Single Turn 1 | . . 1 Machines Repaired . | . . . Machines Dismantled . | . . . Machines Sabotaged . | . . . Overloaded Fab Kills . | . . . Hacking | -11 -10 -9 --------- Run | Yrd Mat Mat Machines Accessed 2 | . 1 1 Terminals 2 | . 1 1 Fabricators . | . . . Repair Stations . | . . . Recycling Units . | . . . Scanalyzers . | . . . Garrison Access . | . . . Total Hacks 4 | . 3 1 Successful 4 | . 3 1 Failed . | . . . Catastrophic . | . . . Database Lockouts . | . . . Manual . | . . . Terminals 4 | . 3 1 Fabricators . | . . . Repair Stations . | . . . Recycling Units . | . . . Scanalyzers . | . . . Garrison Access . | . . . Terminal Hacks 4 | . 3 1 Record 2 | . 2 . Transport Status 1 | . 1 . Zone Layout 1 | . . 1 Fabricator Hacks . | . . . Repair Station Hacks . | . . . Recycling Unit Hacks . | . . . Scanalyzer . | . . . Garrison Access Hacks . | . . . Unauthorized Hacks . | . . . Terminals . | . . . Fabricators . | . . . Repair Stations . | . . . Recycling Units . | . . . Scanalyzers . | . . . Garrison Access . | . . . Data Cores Recovered . | . . . Used . | . . . Hacking Detections 1 | . 1 . Full Trace Events 1 | . 1 . Feedback Events . | . . . Feedback Blocked . | . . . Robot Schematics Acquired . | . . . Robots Built . | . . . Authchips . | . . . Time . | . . . Total Robot Build Rating . | . . . Part Schematics Acquired . | . . . Parts Built . | . . . Authchips . | . . . Time . | . . . Total Part Build Rating . | . . . Parts Repaired . | . . . Time . | . . . Parts Recycled . | . . . Recycled Matter . | . . . Retrieved Matter . | . . . Retrieved Components . | . . . Parts Scanalyzed . | . . . Part Schematics Acquired . | . . . Parts Damaged . | . . . Bothacking | -11 -10 -9 ------------ Run | Yrd Mat Mat Used RIF Installer . | . . . Robots Hacked . | . . . Non-combat . | . . . Combat . | . . . Robot Hacks Applied . | . . . Relay Couplers Released . | . . . Fabnet Peak Effective % . | . . . Robots Rewired . | . . . Allies Hacked . | . . . Hacks Repelled . | . . . Allies | -11 -10 -9 -------- Run | Yrd Mat Mat Total Allies . | . . . Largest Group . | . . . Highest-Rated Group . | . . . Highest-Rated Ally . | . . . Total Orders . | . . . Ally Attacks . | . . . Total Damage . | . . . Kills . | . . . Allies Corrupted . | . . . Allies Melted . | . . . Intel | -11 -10 -9 ------- Run | Yrd Mat Mat Active Infowar (turns) 1324 | . 410 914 Terrain 1324 | . 410 914 Robot Analysis Total . | . . . Derelict Logs Recovered . | . . . Drone Launches . | . . . Drone Recoveries . | . . . Exploration | -11 -10 -9 ------------- Run | Yrd Mat Mat Turns Passed 1524 | 85 511 928 Spaces Moved 614 | 64 276 274 Core 43 | 40 . 3 Treads . | . . . Legs 571 | 24 276 271 Wheels . | . . . Hover . | . . . Flight . | . . . Fastest Speed 50 | 50 120 260 Average Speed 203 | 107 164 266 Slowest Speed 850 | 150 260 850 Overloaded Moves . | . . . Propulsion Burnouts . | . . . Robots Hopped . | . . . Potential Cave-ins . | . . . Cave-ins Triggered . | . . . Exploration Rate (%) 22 | 3 34 29 Regions Visited 2 Branch Regions . Pre-discovered Areas . | . . . Known Exits Taken . | . . . Unknown Exits Taken 2 | 1 1 . Scrap Searched . | . . . Spaces Dug . | . . . Terrain Destroyed . | . . . Melee . | . . . Projectile . | . . . AOE . | . . . Terrain Rammed . | . . . Walls Destroyed . | . . . Machines Disabled . | . . . Actions | -11 -10 -9 --------- Run | Yrd Mat Mat Total 775 | 81 308 386 Wait 44 | . 1 43 Move 612 | 63 275 274 Hop . | . . . Pick Up 26 | 10 9 7 Fast Attach . | . . . Attach 22 | 6 4 12 Detach 3 | . 1 2 Swap . | . . . Drop 8 | 2 4 2 Fire 59 | . 14 45 Melee . | . . . Ram . | . . . Kick 1 | . . 1 Crush . | . . . Escape Stasis . | . . . Rewire . | . . . Trap . | . . . Miscellaneous . | . . . Route ------- -11/Scrapyard -10/Materials -9/Materials (discovered 1 exit: [*Min]) History --------- Turn | Location | Event 2 | -11/Scrapyard | Met Revision 17 9 | -11/Scrapyard | Discovered new exit (range 16) 86 | -11/Scrapyard | Entered Materials 87 | -10/Materials | Met a group of wandering Federalists 310 | -10/Materials | Build established: Mutant 548 | -10/Materials | Discovered new exit (range 10) 597 | -10/Materials | Entered another Materials area 597 | -9/Materials | Evolved 2 slots: Utility x1, Weapon x1 918 | -9/Materials | Lost 3 parts (1p2w) 1196 | -9/Materials | Build established: Skirmisher 1462 | -9/Materials | Core integrity fell below 50% 1472 | -9/Materials | Discovered new exit (range 13) 1515 | -9/Materials | Core integrity fell below 20% 1525 | -9/Materials | Destroyed by G-34 Mercenary with Small Laser Last Messages --------------- G-34 Mercenary destroyed. Power failure, Lgt. Ion Engine shutdown. K-01 Serf collects debris. Acquired 15 matter. K-01 Serf collects debris. Overheating: Energy bleed (-28). K-01 Serf collects debris. G-34 Mercenary destroyed. K-01 Serf collects debris. Lgt. Assault Rifle destroyed. K-01 Serf collects debris. Assault Rifle destroyed. K-01 Serf collects debris. Lgt. Ion Engine destroyed. Adv. Beam Cannon destroyed. Terrain Scanner destroyed. K-01 Serf collects debris. Welding Torch destroyed. R-06 Scavenger collects Ion Engine. K-01 Serf collects debris. Map ----- +----------------------------------------------------+ | ?????????????#### #### # # ! #??#=== | | ????????????????#? ???# # # =*= #?##=== | | ?????????????????????#?# # ! # ! #??# | | ???????????????????????# ##############+##### | | ????????????????????#?## %%%%! | | ???????????????????????# =! | | ???????????????????????#""" """ | | ??????????????????????##"R """"" #######+# | | ?????????????????????###""" """"" ### | | ???????????????????????# """"" #?# """ | | ???????????????????????# "" #?# "T" | | ??????????????????????## #?# | | ??????????????????? ???# * [ #?# | | ???????????????????????# %* #?# " | | ??????????????????? ???##T###T#### ### #?# " [ | | ??????????????????????#?###?###??###?# ### | | ?????????????#??????##???##?#????#???# ### | | ???????????####?????????????#???????## ## | | ??????????? ???#?????#??????????# ### | | ?????????? ??####????#?#??#???# #?####### | | ?????????? ?#"""????##?###??## ##??????? | | ????????????# g b #"Y"############# [#????#?? | | ????????????# k*[!% k #??#???# | | ????????????# ^ [%* =! T #?#????? | | ????????????# T ""* l = #??????? | | ????????????# """ @########### #??????? | | ????????????# ^ ^ """g!#?????????###+######???? | | ?????????????? = #????#????# #???? | | ??????????????? =% #???? ? ?#! """ #???? | | ???????????????? Y #???????? # """ #???# | | ??????????????? r +???? ????# """ #???? | | ??????????????#+# #? ???? ? # #???? | | ????????????????# #### ##????????# """ #???? | | ????????????????+ ??? ?????#??## """ #??#? | | ????????????????##???? ???#?????# """ #???? | | ?????????????????#???? #????????# #???? | | ?????????????????????" < ????????###########???? | | ?????????????????????! ??????????????????????? | | ?????????????????????" ????????????#?????????? | | ????????????????????? k ????????????????#?????? | | ??????????????????????? #???????????????#?##???? | | ?????????????????????????????????????????????#???? | | ??????????????????????????????????????#??????????? | | ?????????????????????????????????????????????????? | | ?????????????????????????????????????????????#???? | | ???????????????????????????????????????#?????????? | | ?????????????????????????????????????????????????? | | ?????????????????????????????????????????????????? | | ?????????????????????????????????????????????????? | | ?????????????????????????????????????????????????? | +----------------------------------------------------+ Best States ------------- Heat Dissipation 28 Energy Generation 10 Energy Capacity 125 Matter Stores 300 Matter Capacity 300 Sight Range 16 Terrain Scan Range 14 Terrain Scan Density 10 Weapon Shielding 33 Evasion (%) 55 Item Schematics ----------------- None Robot Schematics ------------------ None Fabricated ------------ Nothing Repaired ---------- Nothing Alien Tech Used ----------------- None Achievements -------------- None Challenges ------------ None Game ------ Seed ConceptMakeshiftBeacon Manual? 0 Play Time 00:19:13 Cumulative 9.7 hours Start 2025.05.06 @ 21:45:08 End 2025.05.06 @ 22:05:17 Sessions 1 Manual Loads 0 Difficulty Rogue Special Mode None Game No. 32 Rogue 32 Adventurer 0 Explorer 0 Win Type - Total 0 Types 0/0/0/0/0/0/0/0/0/0 Lore% 1 Gallery% 11 Achievement% 10 Wizard Run 0 Options --------- Layout 1 ASCII 0 Keyboard 1 Movement Numpad Keybinds 0 Fullscreen 1 Font 32/SmallcapsGlow Map View 50x35 Zoom Use 0% Tactical HUD 0 Map Filters NONE Filters NONE Steam 1 RUN: 1ce122bf-d10e-4b1b-86ba-1c1176f3b2aa